Workbook

Sheet Line Power Simulator
C2: 1) GIVEN PARAMETERS:
D4: Remote Load Qualification: | N4: Cable Selection:
C5: =IF(OR($AD$57<=0, $AD$57>S22), "out of range", $AD$57) -> 1 | D5: =IF(C5="out of range", S22, C5) -> 1 | E5: ==> Pout; Remote Equipment Load | N5: =VLOOKUP($AD$17,LPS_LPR_Table!$B$26:$C$45,2,FALSE) -> 20 | O5: ==> Selected Wire Size | U5: Critical Distance - kft = | V5: =IF(N40, "Equipment NOT compatible", IF(D27<=0, "Not Capable", D27) ) -> Equipment NOT compatible
D6: =IFERROR(IF(AD16="Integrated Remote Load", $D$5, $D$5/$V$63),0) -> 1.098901099 | E6: ==> Pin; Remote Equipment Input Power | N6: =VLOOKUP($AD$18,LPS_LPR_Table!$B$50:$C$51,2,FALSE) -> 165 | O6: ==> Selected Temperature | U6: Critical Distance - km = | V6: =IF(N42, "-", IF(D27<=0, "-", D28) ) -> -
D7: =N40 -> TRUE | E7: ==> Is remote load setting OK? | N7: =2*(10370/((10^((50-$N$5)*0.0501394))^2))*(1+0.002176*($N$6-68)) -> 24.63852559 | O7: ==> Loop Resistance over Distance
N8: Text Box = | O8: ="* Equivalent Loop Resistance = "&ROUND(N7,1)&" Ohm/kft" -> * Equivalent Loop Resistance = 24.6 Ohm/kft
D9: Manual Distance Adjustment: | AC9: Input Type = | AD9: Custom Upconverter
C10: 1330 | D10: =C10 -> 1330 | E10: ==> Slider Bar 2 (DISTANCE) adjustment | AC10: Load Type 1 = | AD10: Custom Downconverter
D11: =IFERROR(($D$10*$N$7)/J65, 0) -> 32769.23904 | E11: ==> Equivalent Resistance based on current distance (Slider Bar 2) | AC11: Load Type 2 = | AD11: Integrated Remote Load
U12: Intermediate Distance = | V12: =IF(AND(N42,N40), IF(D10>K71, K71, D10),"") -> 1329.625017
D13: Critical Resistance - Condition 1: (Resistance is limited by the UVLO setting of the Downconverter)
C14: EQUATION 1 | D14: =IFERROR((($F$60*$V$60-$V$60^2)/M47),0) -> 32760 | E14: ==> Critical resistance: RLOOP = (Vuc_out * Vdc_cutoff - Vdc_cutoff^2) / (Pin_per_channel) | R14: 5000 | U14: Distance Slider Range
D15: =($D$14/$N$7)*$J$65 -> 1329.625017 | E15: ==> Equivalent Distance | R15: 5 | S15: Selection | U15: 4 | V15: Selection | AC15: Upconverter Selection Index = | AD15: LPS36
C16: EQUATION 2 | D16: =IFERROR(($F$60-SQRT($F$60^2-4*$D$14*M47))/(2*$D$14), 0) -> 0.005494505495 | E16: ==> Calculated Input Current: Icalc_max = [Vuc_out - SQRT(Vuc_out^2 - 4 * RLOOP * Pin_per_channel)] / (2 * RLOOP) | R16: 1 | S16: 75 | U16: 1 | V16: 10 | AC16: Downconverter Selection Index = | AD16: LPR48-300
D17: =IF($D$16<$V$61, TRUE, FALSE) -> TRUE | E17: ==> Is RLOOP qualified as critical resistance? | R17: 2 | S17: 100 | U17: 2 | V17: 20 | AC17: Wire Size Selection Index = | AD17: 20 AWG
R18: 3 | S18: 250 | U18: 3 | V18: 50 | AC18: Installation Type Index = | AD18: Aerial Cable Installation, 165°F/74°C
D19: Critical Resistance - Condition 2: (Resistance is limited by the Max Current Limit of the Downconverter) | R19: 4 | S19: 500 | U19: 4 | V19: 100
C20: EQUATION 3 | D20: =IFERROR((($F$60*$V$61-M47)/$V$61^2), 0) -> 1532.713018 | E20: ==> Critical resistance: RLOOP = [Vuc_out * Imax_current_limit - Pin_per_channel] / ( Imax_current_limit)^2 | R20: 5 | S20: 1000 | U20: 5 | V20: 500 | AC20: Custom Selection = | AD20: =IF(AD16="Integrated Remote Load","Maximum Input Power Consumption =", "Total Output Power (per module) =") -> Total Output Power (per module) =
D21: =($D$20/$N$7)*$J$65 -> 62.20798449 | E21: ==> Equivalent Distance | R21: 6 | S21: 5000 | U21: 6 | V21: 1000
C22: EQUATION 4 | D22: =IFERROR($F$60-$V$61*$D$20,FALSE) -> 4.485310608 | E22: ==> Calculated Vdc input terminal voltage: Vdc_in = Vuc_out - Imax_current_limit * RLOOP | R22: 7 | S22: 10000
D23: =IF(AND(D22>=V60, D22<F60, D20>0), TRUE, FALSE) -> FALSE | E23: ==> Is RLOOP qualified as critical resistance? | R23: Selected Range = | S23: =VLOOKUP($R$15,$R$16:$S$22,2,FALSE) -> 1000 | U23: Dynamic Range = | V23: =IF(D27<=0, 1,IFERROR($D$27,1)) -> 1329.625017
U24: Max Range = | V24: =IF(V23>30000, 30000,ROUNDUP(V23,0)) -> 1330 | AJ24: Custom Upconverter Input Validation:
D25: Dominant Critical RLOOP: | M25: =ROUNDUP(D67/F59,0) -> 1 | AJ25: =AND($G$59>0, $G$59<300) -> TRUE | AK25: AND($G$59>0, $G$59<300)
D26: =IF(N42, IF(D17,D14, IF(D23,D20, "0"))) -> 32760 | E26: ==> Critical resistance: MINIMUM(Equation 1+2, Equation 3+4) | M26: =ROUNDUP(V59/D67,0) -> 4 | R26: Total Pin = | S26: =IFERROR($S$30*D67,"") -> 1.098901099 | U26: Total Pout = | V26: =IFERROR($V$30*D67,"") -> 2.087912088 | AJ26: =AND($G$60>0, $G$60<751, $G$60>V60) -> TRUE | AK26: AND($G$60>0, $G$60<750)
D27: =($D$26/$N$7)*$J$65 -> 1329.625017 | E27: ==> Equivalent Distance | R27: Total Pin Text = | S27: =IF(D67>1, "Total Input Power for " &D67& " pairs = ", "Total Input Power for " &D67& " pair = ") -> Total Input Power for 1 pair = | U27: Total Pout Text = | V27: =IF(D67>1, "Total Output Power for " &D67& " pairs = ", "Total Output Power for " &D67& " pair = ") -> Total Output Power for 1 pair = | AA27: ="Total # of pairs (AWG" &N5& ") for remote load = " -> Total # of pairs (AWG20) for remote load = | AE27: =IF(D27<=0, "", D67*J65) -> 1 | AJ27: =AND($G$61>0, $G$61<100, $G$61>V61) -> TRUE | AK27: AND($G$61>0, $G$61<100, $G$61>V61)
D28: =$D$27*0.3048 -> 405.2697051 | E28: ==> Equivalent Distance (km) | R28: Input Current = | S28: =IFERROR(D35*1000,"") -> 5.494505495 | U28: LPS Current = | V28: =IFERROR(D35*1000,"") -> 5.494505495 | AA28: Unconverter Total Input Current (@48VDC) = | AE28: =IFERROR(($V$30*D67/F63)/48,"") -> 0.04728061793 | AJ28: =AND($G$62>0, $G$62<10000, $G$62>=AJ33) -> TRUE | AK28: AND($G$62>0, $G$62<10000, $G$62>AJ33)
R29: Input Voltage = | S29: =IF(AND(N42,N40), D36, "") -> 200 | U29: LPS Voltage = | V29: =IF(AND(N42,N40), F60, "") -> 380 | AA29: Unconverter Total Input Power (@48VDC) = | AE29: =IFERROR($V$30*D67/F63,"") -> 2.269469661 | AJ29: =AND($G$63>0, $G$63<=100) -> TRUE | AK29: AND($G$63>0, $G$63<=100)
D30: Intermediate to Max Display Value: | R30: Input Power = | S30: =IF(AND(N42,N40), G42, "") -> 1.098901099 | U30: LPS Power = | V30: =IFERROR(M84+S30,"") -> 2.087912088 | AI30: Input Validation: | AJ30: =AND(AJ25,AJ26,AJ27,AJ28,AJ29) -> TRUE
D31: =MIN(D26,D11) -> 32760 | E31: ==> Intermediate RLOOP | R31: Total Pin per module Text = | S31: ="Input Power per Downconverter = " -> Input Power per Downconverter = | U31: Total Pout per module Text = | V31: ="Output Power per Upconverter converter = " -> Output Power per Upconverter converter =
D32: =($D$31/$N$7)*$J$65 -> 1329.625017 | E32: ==> Intermediate Distance (kft) | R32: Total Pin per module = | S32: =D6/W59 -> 0.1098901099
Y33: # of LPS36 | AD33: Pin per Custom Downconverter Input = | AE33: =IFERROR(V62/V59,FALSE) -> 75 | AI33: Effective Remote Load per channel = | AJ33: =IF($AD$16="Custom Downconverter", AE33, IF($AD$16="Integrated Remote Load",AE34, V62/V59)) -> 75
D34: Instantaneous Voltage & Current: | S34: LPS36 Message: | T34: ="Required # of Upconverter Modules (" &AD15& ") = " -> Required # of Upconverter Modules (LPS36) = | Y34: =IF(D27<=0,"",IF(F59>=V59,ROUNDUP(D67/F59,0),ROUNDUP(V59/D67,0))) -> 1 | AA34: =IF(AND(N42,N40), Y34, "") -> 1 | AD34: Pin per Integrated Remote Load Input = | AE34: =IFERROR(D6/V59,FALSE) -> 0.2747252747
D35: =IF(AND($N$42,$D$7), IFERROR(((F60-SQRT(F60^2-4*D31*(D6/D67)))/(2*D31)), 0), "-" ) -> 0.005494505495 | E35: ==> Idc_in_max = [Vuc_out - SQRT(Vuc_out^2 - 4 * RLOOP * Pin)] / (2 * RLOOP) | S35: LPR Message: | T35: ="Required # of Downconverter Modules (" &AD16& ") = " -> Required # of Downconverter Modules (LPR48-300) = | Y35: =IF(D27<=0, "", ROUNDUP(D67/V59,0)) -> 1 | AA35: =IF(AND(N42,N40), Y35, "") -> 1
D36: =IF(AND($N$42,$D$7), IFERROR(($F$60+SQRT($F$60^2-4*(1)*($D$6/$D$67)*($D$31)))/(2*1), 0), "-" ) -> 200 | E36: ==> Vdc_in_min: Vdc_cutoff = Vuc_out +/- SQRT(Vuc_out^2 - 4(1)(Pin)(RLOOP)) / 2(1) | N36: Design Note: | AD36: EQUATION1/2 | AE36: =OR($AD$16=$AD$10,$AD$16=$AD$11) -> FALSE | AF36: OR($AD$16=$AD$10,$AD$16=$AD$11)
N37: =IF(OR(NOT($N$40), D67<=0, IF($AD$15=$AD$9, NOT(AND(AJ25,AJ26,AJ27,AJ28,AJ29)),FALSE)),"Parameter values highlighted in Red are NOT valid or compatible with the system. Enter a new proper value.", IF(NOT($N$42),"System is NOT capable. Reduce the load or increase the total number of 100VA Input Channels to "&(N47)&".", IF(D10<D27,"Operating condition at intermediate distance of "&V12&"kft...", IF(AND($D$17,$D$7),"Maximum Loop Distance is limited by the maximum allowable line voltage drop based from selected wire size.", IF(AND($D$23,$D$7),"Maximum Loop Distance is limited by the input current rating of the selected Downconverter."))))) -> Maximum Loop Distance is limited by the maximum allowable line voltage drop based from selected wire size. | AD37: EQUATION2/2 | AE37: =OR($W$59<=0, $W$59<$AC$34,$W$60>=$F$60, $W$60<=0,$W$61>=$F$61, $W$61<=0,$W$62<=0, $W$62/$W$59>$F$62,$W$63<=0, $W$63>1, D67<=0, AD57<=0, J65<=0) -> TRUE | AF37: OR($W$59<=0, $W$59<$AC$34,$W$60>=$F$60, $W$60<=0,$W$61>=$F$61, $W$61<=0,$W$62<=0, $W$62/$W$59>$F$62,$W$63<=0, $W$63>1, D67<=0, AD57<=0, J65<=0)
AE38: =AND($W$59>0, AE34<F62) -> TRUE | AF38: AND($W$59>0, AE34<F62) | AJ38: =AND($W$59>0, AE33<=F62) -> TRUE | AK38: AND($W$59>0, AE33<F62)
N39: Compatibility of Selected Equipmentt: | AE39: =AND($W$60>0, $W$60<=$F$60) -> TRUE | AF39: AND($W$60>0, $W$60<=$F$60) | AJ39: =AND($W$60>0, $W$60<$F$60) -> TRUE | AK39: AND($W$60>0, $W$60<=$F$60)
N40: =IF($AD$15=$AD$9, $AJ$30, $AE$44) -> TRUE | O40: ==> Returns TRUE if equipment is compatible (First checking) | AE40: =AND($W$61>0, $W$61<$F$61) -> TRUE | AF40: AND($W$61>0, $W$61<$F$61) | AJ40: =AND($W$61>0, $W$61<$F$61) -> TRUE | AK40: AND($W$61>0, $W$61<$F$61)
F41: Max Line Loss per pair (W) = | G41: =IF(D27<=0, "-", D35^2*D31) -> 0.989010989 | N41: System Capability: | AD41: Alpha Standard Downconverter Validation: | AE41: =AND(F60>V60, F61>V61,F62>AJ33) -> TRUE | AJ41: =AND($W$62>0, $W$62<=10000) -> TRUE | AK41: AND($W$62>0, $W$62<=10000)
F42: Max Remote Input Load per pair (W) = | G42: =IF(D27<=0, "-", D35*D36) -> 1.098901099 | N42: =IF(AND($N$40,$D$67>=$N$46,$N$46>0,$D$67>0,$J$65>0,OR(D17,D23)),TRUE,FALSE) -> TRUE | O42: ==> Returns TRUE if system is capable | AD42: Integrated Remote Load Validation: | AE42: =AND(AE38,AE39,AE40) -> TRUE | AJ42: =AND($W$63>0, $W$63<=1) -> TRUE | AK42: AND($W$63>0, $W$63<=100)
F43: LPS Max Output Delivery per pair (W) = | G43: =IF(D27<=0,"-", G41+G42) -> 2.087912088 | AD43: Custom Downconverter Validation: | AE43: =AND(AJ38,AJ39,AJ40,AJ41,AJ42) -> TRUE
N44: Cable Pair Conditional Statement: | AD44: Combined Validation: | AE44: =IF($AD$16=AD10,AE43, IF($AD$16=AD11,AE42, AE41)) -> TRUE
F45: Total Line Loss (W) = | G45: =IF(D27<=0, "-", G41*D67) -> 0.989010989
F46: Total Remote Input Load (W) = | G46: =IF(D27<=0, "-", G42*D67) -> 1.098901099 | L46: Max # of 100VA Channels = | M46: =MAX($D$67,$N$46) -> 1 | N46: =IFERROR(IF(N49,N47, ROUNDDOWN(D6/AJ33,0)+1), FALSE) -> 1 | O46: ==> Minimum number of Input pairs for Downconverter (based on Total Load Power & Eff)
F47: Total LPS Output Delivery(W) = | G47: =IF(D27<=0, "-", G45+G46) -> 2.087912088 | L47: Pin per input channel = | M47: =D6/M46 -> 1.098901099 | N47: =IFERROR(ROUNDUP(AD57/AJ33,0),FALSE) -> 1 | O47: ==> Suggested Minimum number of LPS channels based on Load
M49: Downconverter Output Multiple (if exacr value): | N49: =IF(AND($AD$16=$AD$10, (D6/$V$62-TRUNC(D6/$V$62))>0), FALSE, TRUE) -> TRUE
AG53: Revision 4.3 (May 2020)
B54: Upconverter Parameters | I54: Outside Plant (OSP) Parameters | Q54: Downconverter Parameters | AC54: Remote Load
D56: Select Upconverter Model: | J56: Select Wire Size (AWG): | T56: Select Downconverter Model: | AD56: =IF($AD$16="Integrated Remote Load", "Set Maximum Input Power Consumption:", "Set Maximum Load:") -> Set Maximum Load:
AD57: 1
E59: Number of Output Channels = | F59: =IF($AD$15=AD9, G59, VLOOKUP($AD$15,LPS_LPR_Table!B2:G5,6,FALSE)) -> 4 | G59: 1 | U59: # of Input Channels = | V59: =IF(OR($AD$16=AD10,$AD$16=AD11), ROUND(W59,0), VLOOKUP($AD$16,LPS_LPR_Table!B11:G19,6,FALSE)) -> 4 | W59: 10 | AD59: 16
E60: Rated Output Voltage = | F60: =IF($AD$15=AD9, G60, VLOOKUP($AD$15,LPS_LPR_Table!B2:G5,2,FALSE)) -> 380 | G60: 380 | J60: Select Type of Installation: | U60: Minimum Operating Input Voltage = | V60: =IF(OR($AD$16=AD10,$AD$16=AD11), W60, VLOOKUP($AD$16,LPS_LPR_Table!B11:G19,2,FALSE)) -> 200 | W60: 200
E61: Maximum Current Limit (per channel) = | F61: =IF($AD$15=AD9, G61, VLOOKUP($AD$15,LPS_LPR_Table!B2:G5,3,FALSE)) -> 0.255 | G61: 4 | U61: Input Current Limit (per channel) = | V61: =IF(OR($AD$16=AD10,$AD$16=AD11), W61, VLOOKUP($AD$16,LPS_LPR_Table!B11:G19,3,FALSE)) -> 0.245 | W61: 0.24
E62: Maximum Output Power (per channel) = | F62: =IF($AD$15=AD9, G62, VLOOKUP($AD$15,LPS_LPR_Table!B2:G5,4,FALSE)) -> 96 | G62: 1500 | U62: =AD20 -> Total Output Power (per module) = | V62: =IF(OR($AD$16=AD10,$AD$16=AD11), W62, VLOOKUP($AD$16,LPS_LPR_Table!B11:G19,4,FALSE)) -> 300 | W62: 1500
E63: Module Efficiency = | F63: =IF($AD$15=AD9, G63, VLOOKUP($AD$15,LPS_LPR_Table!B2:G5,5,FALSE)) -> 0.92 | G63: 1 | U63: Module Efficiency = | V63: =IF(OR($AD$16=AD10,$AD$16=AD11), W63, VLOOKUP($AD$16,LPS_LPR_Table!B11:G19,5,FALSE)) -> 0.91 | W63: 1
J64: =IF($AD$15=AD9, "Number of bonded conductors per channel:", "Number of bonded conductors per 100VA channel:") -> Number of bonded conductors per 100VA channel:
J65: 1
D66: =IF($AD$15=AD9, "Total Number of Channels:", "Total Number of 100VA Channels:") -> Total Number of 100VA Channels:
D67: 1
J69: Maximum Span Distance =
K71: =IF(NOT(N40), "Not Compatible", IF(NOT(N42), "Not Capable", D27) ) -> 1329.625017
K73: =IF(NOT(N40), " ", IF(NOT(N42), " ", D28) ) -> 405.2697051
L83: Equivalent Loop Resistance = | M83: =IF(AND(N42,N40), D31, "") -> 32760
L84: =IF($AD$15=AD9, "Line Loss per channel =", "Line Loss per 100VA channel =") -> Line Loss per 100VA channel = | M84: =IF(AND(N42,N40), $G$41, "") -> 0.989010989
L85: =IF(D67>1, "Total Line Loss for ALL channels =", "Total Line Loss for 1 100VA channel =") -> Total Line Loss for 1 100VA channel = | M85: =IF(AND(N42,N40), $G$41*D67, "") -> 0.989010989
Z91: =ROUNDUP(D67/V59,0) -> 1

Sheet Instruction (hidden)
B2: How To Use This Calculator Tool:
B4: Note: In order to use the full functionality of this tool, make sure that the Macro is ENABLED.
C6: STEP 1: | D6: Enter the maximum power of the remote load either by typing the value inside the box or by using the slider bar.
C21: STEP 2: | D21: Select the Alpha Upconverter module for the application using the pull-down menu. The specs and rating of the selected Upconverter is shown automatically.
C34: STEP 3: | D34: Select the Alpha Downconverter module for the application using the pull-down menu. The specs and rating of the selected Downconverter is shown automatically.
C47: STEP 4: | D47: Select the Cable Size from the pull-down menu.
C57: STEP 5: | D57: Select the Type of Installation from the pull-down menu.
C66: STEP 6: | D66: Select how many number of conductors that will be bonded or connected together in parallel in order to reduce further the line impedance or increase reliability.
C74: STEP 7: | D74: Select how many number of 100VA channels from the Upconverter that will be required.
D75: If the number of channels selected is not enough, the calculator will prompt a warning message "Not Capable". If this is the case, increase the number of 100VA channels
D76: to the appropriate minimum value required as indicated in the status window.
C84: STEP 8: | D84: This function is optional. It will allow calculation of the actual operating parameters (Iin, Vin, Pin, line loss, etc.) for specific distance that's less than the maximum hypothetical value.

Sheet LPS_LPR_Table (hidden)
B1: Upconverters
B2: Model | C2: Min. Vout (V) | D2: Min. Iout (A) | E2: Min. Pout (W) | F2: Efficiency | G2: # of Output Channels
B3: LPS36 | C3: 380 | D3: 0.255 | E3: 96 | F3: 0.92 | G3: 4
B4: Custom Upconverter | C4: 380 | D4: 0.25 | E4: 92 | F4: 0.9 | G4: 4
B9: Downconverters
B10: Model | C10: Input Cut-off Voltage (V) | D10: Max Current Consumption (A) | E10: Output Power (W) | F10: Efficiency | G10: # of Input Channels | J10: Max Input Power @ Vin=200V (W)
B11: LPR48-300 | C11: 200 | D11: 0.245 | E11: 300 | F11: 0.91 | G11: 4 | J11: =C11*D11 -> 49
B12: LPR48-150 | C12: 200 | D12: 0.245 | E12: 150 | F12: 0.89 | G12: 2 | J12: =C12*D12 -> 49
B13: LPR48-60 | C13: 200 | D13: 0.245 | E13: 60 | F13: 0.88 | G13: 1 | J13: =C13*D13 -> 49
B14: LPR48-30 | C14: 200 | D14: 0.245 | E14: 30 | F14: 0.87 | G14: 1 | J14: =C14*D14 -> 49
B15: LPR12-60 | C15: 200 | D15: 0.245 | E15: 60 | F15: 0.85 | G15: 1 | J15: =C15*D15 -> 49
B16: LPR12-30 | C16: 200 | D16: 0.245 | E16: 30 | F16: 0.85 | G16: 1 | J16: =C16*D16 -> 49
B17: CSM46 | C17: 200 | D17: 0.235 | E17: 150 | F17: 0.85 | G17: 2 | J17: =C17*D17 -> 47
B18: Custom Downconverter | C18: 200 | D18: 0.245 | E18: 100 | F18: 0.95 | G18: 2 | J18: =C18*D18 -> 49
B19: Integrated Remote Load | C19: 200 | D19: 0.245 | E19: 100 | F19: 0.95 | G19: 2 | J19: 49
B24: Cable Size
B25: AWG | C25: Size
B26: 30 AWG | C26: 30
B27: 28 AWG | C27: 28
B28: 26 AWG | C28: 26
B29: 25 AWG | C29: 25
B30: 24 AWG | C30: 24
B31: 23 AWG | C31: 23
B32: 22 AWG | C32: 22
B33: 21 AWG | C33: 21
B34: 20 AWG | C34: 20
B35: 19 AWG | C35: 19
B36: 18 AWG | C36: 18
B37: 16 AWG | C37: 16
B38: 14 AWG | C38: 14
B39: 12 AWG | C39: 12
B40: 10 AWG | C40: 10
B41: 8 AWG | C41: 8
B42: 6 AWG | C42: 6
B43: 4 AWG | C43: 4
B44: 2 AWG | C44: 2
B45: 1 AWG | C45: 1
B48: Temperature
B49: Temp | C49: Size
B50: Underground Cable Installation, 65°F/18°C | C50: 65
B51: Aerial Cable Installation, 165°F/74°C | C51: 165
